[Event "Titled Tuesday Blitz October 5 2021"]
[White "Aggelis, Nikolaos"]
[Black "Acosta, Pablo Ismael"]
[WhiteFideId "4213220"]
[BlackFideId "124311"]
[WhiteElo "2154"]
[BlackElo "2318"]
[Result "0-1"]
[Round "04"]
[TimeControl "180+1"]
[Date "2021.10.05"]
[WhiteClock "0:01:56"]
[BlackClock "0:01:00"]

1. d4 {[%clk 0:03:00]}  Nf6 {[%clk 0:02:57]} 2. g3 {[%clk 0:03:01]}  g6 {[%clk 0:02:56]} 3. Bg2 {[%clk 0:03:02]}  Bg7 {[%clk 0:02:57]} 4. Nf3 {[%clk 0:03:03]}  O-O {[%clk 0:02:57]} 5. O-O {[%clk 0:03:04]}  d6 {[%clk 0:02:54]} 6. b3 {[%clk 0:03:04]}  c6 {[%clk 0:02:51]} 7. Bb2 {[%clk 0:03:04]}  Bg4 {[%clk 0:02:51]} 8. Nbd2 {[%clk 0:03:03]}  Bxf3 {[%clk 0:02:50]} 9. Bxf3 {[%clk 0:03:00]}  Nbd7 {[%clk 0:02:50]} 10. e4 {[%clk 0:03:00]}  Qc7 {[%clk 0:02:48]} 11. Re1 {[%clk 0:03:00]}  e5 {[%clk 0:02:47]} 12. dxe5 {[%clk 0:03:00]}  Nxe5 {[%clk 0:02:46]} 13. Be2 {[%clk 0:03:01]}  Rfe8 {[%clk 0:02:46]} 14. Kg2 {[%clk 0:02:54]}  h5 {[%clk 0:02:45]} 15. h3 {[%clk 0:02:53]}  d5 {[%clk 0:02:39]} 16. exd5 {[%clk 0:02:48]}  Nxd5 {[%clk 0:02:37]} 17. c4 {[%clk 0:02:39]}  Nb4 {[%clk 0:02:32]} 18. Qb1 {[%clk 0:02:31]}  Rad8 {[%clk 0:02:28]} 19. Nf3 {[%clk 0:02:27]}  Nxf3 {[%clk 0:02:07]} 20. Kxf3 {[%clk 0:02:28]}  Rd2 {[%clk 0:01:23]} 21. Bxg7 {[%clk 0:02:24]}  Kxg7 {[%clk 0:01:24]} 22. Bf1 {[%clk 0:02:15]}  Qb6 {[%clk 0:01:16]} 23. Re2 {[%clk 0:02:10]}  Rexe2 {[%clk 0:01:12]} 24. Bxe2 {[%clk 0:02:11]}  Nc2 {[%clk 0:01:04]} 25. Qc1 {[%clk 0:02:02]}  Nd4+ {[%clk 0:01:01]} 26. Kg2 {[%clk 0:01:58]}  Rxe2 {[%clk 0:01:01]} 27. Qf4 {[%clk 0:01:58]}  c5 {[%clk 0:01:01]} 28. Rd1 {[%clk 0:01:58]}  Qc6+ {[%clk 0:01:00]} 29. Kf1 {[%clk 0:01:56]}  Qh1# {[%clk 0:01:00]} 0-1


[Site "https://www.chess.com"]

[Event "Titled Tuesday Blitz October 5 2021"]
[White "Al-Tarboush, Ward"]
[Black "Pert, Richard G"]
[WhiteFideId "7601450"]
[BlackFideId "404748"]
[WhiteElo "2296"]
[BlackElo "2441"]
[Result "1-0"]
[Round "04"]
[TimeControl "180+1"]
[Date "2021.10.05"]
[WhiteClock "0:00:05"]
[BlackClock "0:00:04"]

1. e4 {[%clk 0:03:00]}  c6 {[%clk 0:03:00]} 2. Nf3 {[%clk 0:03:01]}  d5 {[%clk 0:03:00]} 3. Nc3 {[%clk 0:03:02]}  Bg4 {[%clk 0:02:59]} 4. h3 {[%clk 0:03:02]}  Bxf3 {[%clk 0:02:59]} 5. Qxf3 {[%clk 0:03:03]}  Nf6 {[%clk 0:02:59]} 6. d3 {[%clk 0:03:02]}  e6 {[%clk 0:02:58]} 7. Bd2 {[%clk 0:03:02]}  Qb6 {[%clk 0:02:56]} 8. O-O-O {[%clk 0:03:01]}  d4 {[%clk 0:02:55]} 9. Ne2 {[%clk 0:03:00]}  c5 {[%clk 0:02:56]} 10. g4 {[%clk 0:02:59]}  Nc6 {[%clk 0:02:56]} 11. g5 {[%clk 0:02:58]}  Nd7 {[%clk 0:02:55]} 12. Qg3 {[%clk 0:02:59]}  O-O-O {[%clk 0:02:43]} 13. e5 {[%clk 0:02:52]}  c4 {[%clk 0:02:27]} 14. dxc4 {[%clk 0:02:47]}  Ndxe5 {[%clk 0:02:26]} 15. Qb3 {[%clk 0:02:38]}  Qxb3 {[%clk 0:02:17]} 16. axb3 {[%clk 0:02:39]}  d3 {[%clk 0:02:17]} 17. Nc3 {[%clk 0:02:18]}  dxc2 {[%clk 0:02:16]} 18. Kxc2 {[%clk 0:02:18]}  Nd4+ {[%clk 0:02:16]} 19. Kb1 {[%clk 0:02:17]}  Nxb3 {[%clk 0:02:16]} 20. Be3 {[%clk 0:02:18]}  Bb4 {[%clk 0:02:09]} 21. Bg2 {[%clk 0:02:16]}  Bxc3 {[%clk 0:02:05]} 22. bxc3 {[%clk 0:02:15]}  Nxc4 {[%clk 0:02:05]} 23. Bxa7 {[%clk 0:02:10]}  b6 {[%clk 0:02:03]} 24. Kc2 {[%clk 0:01:49]}  Nba5 {[%clk 0:01:57]} 25. Rd4 {[%clk 0:01:17]}  Rxd4 {[%clk 0:01:35]} 26. cxd4 {[%clk 0:01:18]}  Rd8 {[%clk 0:01:34]} 27. Ra1 {[%clk 0:01:03]}  Rxd4 {[%clk 0:01:12]} 28. Bxb6 {[%clk 0:01:02]}  Rd2+ {[%clk 0:01:07]} 29. Kc3 {[%clk 0:01:00]}  Re2 {[%clk 0:00:43]} 30. Bxa5 {[%clk 0:00:49]}  Nxa5 {[%clk 0:00:40]} 31. Rxa5 {[%clk 0:00:50]}  Rxf2 {[%clk 0:00:40]} 32. Be4 {[%clk 0:00:38]}  Kd7 {[%clk 0:00:35]} 33. Kd4 {[%clk 0:00:30]}  h6 {[%clk 0:00:35]} 34. Ra7+ {[%clk 0:00:29]}  Kd6 {[%clk 0:00:34]} 35. Ra6+ {[%clk 0:00:27]}  Ke7 {[%clk 0:00:34]} 36. Ra7+ {[%clk 0:00:25]}  Kd6 {[%clk 0:00:34]} 37. Ra6+ {[%clk 0:00:25]}  Ke7 {[%clk 0:00:34]} 38. h4 {[%clk 0:00:23]}  hxg5 {[%clk 0:00:31]} 39. hxg5 {[%clk 0:00:24]}  Rf1 {[%clk 0:00:30]} 40. Ra7+ {[%clk 0:00:22]}  Kd6 {[%clk 0:00:29]} 41. Ra6+ {[%clk 0:00:22]}  Ke7 {[%clk 0:00:29]} 42. Ra5 {[%clk 0:00:15]}  Kd6 {[%clk 0:00:24]} 43. Bd3 {[%clk 0:00:13]}  Rf4+ {[%clk 0:00:19]} 44. Ke3 {[%clk 0:00:13]}  Rg4 {[%clk 0:00:19]} 45. Kf3 {[%clk 0:00:12]}  Rg1 {[%clk 0:00:18]} 46. Kf4 {[%clk 0:00:09]}  f6 {[%clk 0:00:17]} 47. Ra6+ {[%clk 0:00:09]}  Ke7 {[%clk 0:00:17]} 48. Ra7+ {[%clk 0:00:09]}  Kd6 {[%clk 0:00:17]} 49. g6 {[%clk 0:00:08]}  e5+ {[%clk 0:00:16]} 50. Ke3 {[%clk 0:00:06]}  Rg3+ {[%clk 0:00:15]} 51. Kd2 {[%clk 0:00:05]}  Rg2+ {[%clk 0:00:12]} 52. Kc3 {[%clk 0:00:04]}  Rg3 {[%clk 0:00:12]} 53. Kc4 {[%clk 0:00:04]}  Rg4+ {[%clk 0:00:12]} 54. Kb3 {[%clk 0:00:04]}  Rg3 {[%clk 0:00:12]} 55. Kc2 {[%clk 0:00:04]}  Rg2+ {[%clk 0:00:12]} 56. Kd1 {[%clk 0:00:04]}  Kd5 {[%clk 0:00:10]} 57. Rxg7 {[%clk 0:00:04]}  Kd4 {[%clk 0:00:11]} 58. Rd7+ {[%clk 0:00:04]}  Ke3 {[%clk 0:00:11]} 59. g7 {[%clk 0:00:04]}  e4 {[%clk 0:00:09]} 60. Bc4 {[%clk 0:00:04]}  Rg1+ {[%clk 0:00:09]} 61. Kc2 {[%clk 0:00:04]}  Rg2+ {[%clk 0:00:09]} 62. Kc3 {[%clk 0:00:04]}  f5 {[%clk 0:00:09]} 63. g8=Q {[%clk 0:00:04]}  Rxg8 {[%clk 0:00:09]} 64. Bxg8 {[%clk 0:00:05]}  f4 {[%clk 0:00:09]} 65. Bc4 {[%clk 0:00:04]}  f3 {[%clk 0:00:10]} 66. Rf7 {[%clk 0:00:04]}  Kf2 {[%clk 0:00:09]} 67. Bd5 {[%clk 0:00:04]}  Ke3 {[%clk 0:00:06]} 68. Bxe4 {[%clk 0:00:04]}  f2 {[%clk 0:00:04]} 69. Bd3 {[%clk 0:00:04]}  f1=Q {[%clk 0:00:04]} 70. Bxf1 {[%clk 0:00:05]} 1-0


[Site "https://www.chess.com"]

[Event "Titled Tuesday Blitz October 5 2021"]
[White "Bethke, Richard"]
[Black "Viani Antonio Dcunha"]
[WhiteFideId "12959243"]
[BlackFideId "5027330"]
[WhiteElo "2395"]
[BlackElo "2366"]
[Result "0-1"]
[Round "04"]
[TimeControl "180+1"]
[Date "2021.10.05"]
[WhiteClock "0:02:27"]
[BlackClock "0:02:10"]

1. e4 {[%clk 0:03:00]}  e5 {[%clk 0:02:58]} 2. Nf3 {[%clk 0:03:01]}  Nc6 {[%clk 0:02:58]} 3. Bc4 {[%clk 0:03:01]}  Nf6 {[%clk 0:02:57]} 4. d3 {[%clk 0:03:01]}  Bc5 {[%clk 0:02:57]} 5. O-O {[%clk 0:03:01]}  O-O {[%clk 0:02:56]} 6. a4 {[%clk 0:02:59]}  a6 {[%clk 0:02:44]} 7. Re1 {[%clk 0:02:58]}  d6 {[%clk 0:02:42]} 8. h3 {[%clk 0:02:55]}  h6 {[%clk 0:02:34]} 9. c3 {[%clk 0:02:55]}  Be6 {[%clk 0:02:31]} 10. Nbd2 {[%clk 0:02:52]}  Re8 {[%clk 0:02:27]} 11. b4 {[%clk 0:02:44]}  Ba7 {[%clk 0:02:22]} 12. Qb3 {[%clk 0:02:33]}  d5 {[%clk 0:02:18]} 13. exd5 {[%clk 0:02:32]}  Bxd5 {[%clk 0:02:19]} 14. Bxd5 {[%clk 0:02:32]}  Qxd5 {[%clk 0:02:19]} 15. Qxd5 {[%clk 0:02:31]}  Nxd5 {[%clk 0:02:20]} 16. Bb2 {[%clk 0:02:30]}  Nf4 {[%clk 0:02:14]} 17. Re2 {[%clk 0:02:27]}  Nxe2+ {[%clk 0:02:10]} 0-1


[Site "https://www.chess.com"]

[Event "Titled Tuesday Blitz October 5 2021"]
[White "Boyer, Mahel"]
[Black "Guliev, Logman"]
[WhiteFideId "45102422"]
[BlackFideId "13400061"]
[WhiteElo "2328"]
[BlackElo "2128"]
[Result "1-0"]
[Round "04"]
[TimeControl "180+1"]
[Date "2021.10.05"]
[WhiteClock "0:00:06"]
[BlackClock "0:00:05"]

1. e4 {[%clk 0:00:54]}  c5 {[%clk 0:02:57]} 2. d3 {[%clk 0:00:54]}  Nf6 {[%clk 0:02:55]} 3. g3 {[%clk 0:00:52]}  Nc6 {[%clk 0:02:55]} 4. Bg2 {[%clk 0:00:53]}  e6 {[%clk 0:02:54]} 5. f4 {[%clk 0:00:50]}  d5 {[%clk 0:02:53]} 6. Qe2 {[%clk 0:00:49]}  Nd4 {[%clk 0:02:51]} 7. Qd1 {[%clk 0:00:50]}  Be7 {[%clk 0:02:48]} 8. c3 {[%clk 0:00:50]}  Nc6 {[%clk 0:02:47]} 9. Qe2 {[%clk 0:00:48]}  O-O {[%clk 0:02:46]} 10. Nf3 {[%clk 0:00:48]}  dxe4 {[%clk 0:02:45]} 11. dxe4 {[%clk 0:00:49]}  b6 {[%clk 0:02:45]} 12. O-O {[%clk 0:00:48]}  a5 {[%clk 0:02:45]} 13. Rd1 {[%clk 0:00:48]}  Qc7 {[%clk 0:02:44]} 14. Na3 {[%clk 0:00:47]}  Ba6 {[%clk 0:02:44]} 15. Nb5 {[%clk 0:00:48]}  Bxb5 {[%clk 0:02:35]} 16. Qxb5 {[%clk 0:00:48]}  Nxe4 {[%clk 0:02:35]} 17. Ne5 {[%clk 0:00:44]}  Nxe5 {[%clk 0:02:26]} 18. Bxe4 {[%clk 0:00:41]}  Ng4 {[%clk 0:01:46]} 19. Bxa8 {[%clk 0:00:25]}  Rd8 {[%clk 0:01:15]} 20. Bf3 {[%clk 0:00:21]}  Nf6 {[%clk 0:01:08]} 21. Be3 {[%clk 0:00:21]}  Nd5 {[%clk 0:01:06]} 22. Bf2 {[%clk 0:00:21]}  h5 {[%clk 0:01:04]} 23. c4 {[%clk 0:00:20]}  Nb4 {[%clk 0:01:02]} 24. Rxd8+ {[%clk 0:00:17]}  Qxd8 {[%clk 0:01:02]} 25. Rd1 {[%clk 0:00:17]}  Qf8 {[%clk 0:00:58]} 26. a3 {[%clk 0:00:17]}  Nc2 {[%clk 0:00:57]} 27. Qxb6 {[%clk 0:00:14]}  h4 {[%clk 0:00:53]} 28. Qxa5 {[%clk 0:00:11]}  hxg3 {[%clk 0:00:52]} 29. hxg3 {[%clk 0:00:12]}  g5 {[%clk 0:00:51]} 30. Qc3 {[%clk 0:00:11]}  Nd4 {[%clk 0:00:49]} 31. Bxd4 {[%clk 0:00:10]}  cxd4 {[%clk 0:00:50]} 32. Rxd4 {[%clk 0:00:11]}  Bc5 {[%clk 0:00:49]} 33. b4 {[%clk 0:00:11]}  Bxd4+ {[%clk 0:00:45]} 34. Qxd4 {[%clk 0:00:12]}  Qh6 {[%clk 0:00:41]} 35. fxg5 {[%clk 0:00:12]}  Qh3 {[%clk 0:00:35]} 36. Qe5 {[%clk 0:00:09]}  Qh7 {[%clk 0:00:30]} 37. Be4 {[%clk 0:00:09]}  Qh5 {[%clk 0:00:29]} 38. Qf4 {[%clk 0:00:04]}  Qd1+ {[%clk 0:00:28]} 39. Kh2 {[%clk 0:00:03]}  Qh5+ {[%clk 0:00:25]} 40. Kg1 {[%clk 0:00:03]}  Qd1+ {[%clk 0:00:25]} 41. Kh2 {[%clk 0:00:02]}  Qh5+ {[%clk 0:00:23]} 42. Qh4 {[%clk 0:00:03]}  Qe2+ {[%clk 0:00:23]} 43. Bg2 {[%clk 0:00:03]}  Qc2 {[%clk 0:00:20]} 44. c5 {[%clk 0:00:04]}  Kg7 {[%clk 0:00:19]} 45. c6 {[%clk 0:00:03]}  Kg8 {[%clk 0:00:18]} 46. Qh5 {[%clk 0:00:02]}  Kg7 {[%clk 0:00:18]} 47. b5 {[%clk 0:00:02]}  Qc5 {[%clk 0:00:17]} 48. Qh6+ {[%clk 0:00:02]}  Kg8 {[%clk 0:00:17]} 49. a4 {[%clk 0:00:03]}  Qc3 {[%clk 0:00:16]} 50. g6 {[%clk 0:00:03]}  fxg6 {[%clk 0:00:15]} 51. Qxg6+ {[%clk 0:00:04]}  Kf8 {[%clk 0:00:15]} 52. Qxe6 {[%clk 0:00:05]}  Kg7 {[%clk 0:00:15]} 53. Qd7+ {[%clk 0:00:04]}  Kg6 {[%clk 0:00:13]} 54. c7 {[%clk 0:00:05]}  Qh8+ {[%clk 0:00:13]} 55. Qh3 {[%clk 0:00:05]}  Qe5 {[%clk 0:00:08]} 56. c8=Q {[%clk 0:00:06]}  Kf7 {[%clk 0:00:07]} 57. Qhf5+ {[%clk 0:00:06]}  Kg7 {[%clk 0:00:05]} 58. Qxe5+ {[%clk 0:00:06]} 1-0


[Site "https://www.chess.com"]

[Event "Titled Tuesday Blitz October 5 2021"]
[White "Carnicelli, Valerio"]
[Black "Zhigalko, Sergei"]
[WhiteFideId "856185"]
[BlackFideId "13502956"]
[WhiteElo "2332"]
[BlackElo "2662"]
[Result "0-1"]
[Round "04"]
[TimeControl "180+1"]
[Date "2021.10.05"]
[WhiteClock "0:00:05"]
[BlackClock "0:00:04"]

1. d4 {[%clk 0:03:00]}  Nf6 {[%clk 0:03:00]} 2. c4 {[%clk 0:03:00]}  e6 {[%clk 0:03:00]} 3. Nc3 {[%clk 0:03:00]}  Bb4 {[%clk 0:03:00]} 4. Qc2 {[%clk 0:03:00]}  O-O {[%clk 0:03:00]} 5. Nf3 {[%clk 0:03:00]}  d5 {[%clk 0:02:58]} 6. cxd5 {[%clk 0:02:57]}  exd5 {[%clk 0:02:58]} 7. Bg5 {[%clk 0:02:53]}  c5 {[%clk 0:02:58]} 8. a3 {[%clk 0:02:48]}  Bxc3+ {[%clk 0:02:57]} 9. bxc3 {[%clk 0:02:47]}  h6 {[%clk 0:02:52]} 10. Bh4 {[%clk 0:02:43]}  g5 {[%clk 0:02:52]} 11. Bg3 {[%clk 0:02:43]}  Ne4 {[%clk 0:02:53]} 12. e3 {[%clk 0:02:39]}  Bf5 {[%clk 0:02:52]} 13. Bd3 {[%clk 0:02:36]}  c4 {[%clk 0:02:51]} 14. Bxe4 {[%clk 0:02:36]}  Bxe4 {[%clk 0:02:52]} 15. Qd2 {[%clk 0:02:33]}  f6 {[%clk 0:02:43]} 16. O-O {[%clk 0:02:32]}  Nc6 {[%clk 0:02:43]} 17. Qb2 {[%clk 0:02:25]}  Rf7 {[%clk 0:02:33]} 18. Nd2 {[%clk 0:02:25]}  Bd3 {[%clk 0:02:30]} 19. Rfe1 {[%clk 0:02:25]}  Re7 {[%clk 0:02:19]} 20. f3 {[%clk 0:02:20]}  Qe8 {[%clk 0:02:17]} 21. Bf2 {[%clk 0:02:19]}  Rd8 {[%clk 0:02:04]} 22. e4 {[%clk 0:01:59]}  b6 {[%clk 0:01:44]} 23. exd5 {[%clk 0:01:51]}  Rxd5 {[%clk 0:01:44]} 24. Rxe7 {[%clk 0:01:46]}  Nxe7 {[%clk 0:01:43]} 25. Re1 {[%clk 0:01:47]}  Qd7 {[%clk 0:01:38]} 26. Ne4 {[%clk 0:01:45]}  Kf7 {[%clk 0:01:36]} 27. Bg3 {[%clk 0:01:41]}  Nf5 {[%clk 0:01:31]} 28. Qb4 {[%clk 0:01:36]}  Rb5 {[%clk 0:00:45]} 29. Qa4 {[%clk 0:01:26]}  Rd5 {[%clk 0:00:23]} 30. Qd1 {[%clk 0:01:25]}  h5 {[%clk 0:00:20]} 31. Qd2 {[%clk 0:01:18]}  h4 {[%clk 0:00:20]} 32. Bf2 {[%clk 0:01:17]}  Qa4 {[%clk 0:00:20]} 33. Nxg5+ {[%clk 0:00:33]}  fxg5 {[%clk 0:00:18]} 34. Qxg5 {[%clk 0:00:34]}  Qc6 {[%clk 0:00:08]} 35. Bxh4 {[%clk 0:00:31]}  Qg6 {[%clk 0:00:06]} 36. Qf4 {[%clk 0:00:25]}  Kg8 {[%clk 0:00:06]} 37. Bf2 {[%clk 0:00:21]}  Rd7 {[%clk 0:00:05]} 38. Re5 {[%clk 0:00:19]}  Rf7 {[%clk 0:00:04]} 39. Re8+ {[%clk 0:00:18]}  Rf8 {[%clk 0:00:04]} 40. Rxf8+ {[%clk 0:00:18]}  Kxf8 {[%clk 0:00:05]} 41. Qb8+ {[%clk 0:00:18]}  Qe8 {[%clk 0:00:04]} 42. Qxa7 {[%clk 0:00:05]}  Qe2 {[%clk 0:00:03]} 43. Qb8+ {[%clk 0:00:05]}  Kf7 {[%clk 0:00:03]} 44. Qc7+ {[%clk 0:00:05]}  Ne7 {[%clk 0:00:03]} 45. Qf4+ {[%clk 0:00:05]}  Ke8 {[%clk 0:00:04]} 46. Qc1 {[%clk 0:00:05]}  Nd5 {[%clk 0:00:03]} 47. h4 {[%clk 0:00:05]}  Kd7 {[%clk 0:00:03]} 48. Qe1 {[%clk 0:00:05]}  Qc2 {[%clk 0:00:02]} 49. Qe5 {[%clk 0:00:04]}  Nxc3 {[%clk 0:00:02]} 50. Bg3 {[%clk 0:00:04]}  Ne2+ {[%clk 0:00:03]} 51. Kh2 {[%clk 0:00:04]}  Nxg3 {[%clk 0:00:04]} 52. Qxg3 {[%clk 0:00:05]}  Qe2 {[%clk 0:00:04]} 53. Qg7+ {[%clk 0:00:04]}  Qe7 {[%clk 0:00:04]} 54. h5 {[%clk 0:00:05]}  Qxg7 {[%clk 0:00:04]} 0-1


[Site "https://www.chess.com"]

[Event "Titled Tuesday Blitz October 5 2021"]
[White "Csonka, Balazs"]
[Black "Ekdyshman, Mikhail"]
[WhiteFideId "742910"]
[BlackFideId "4149416"]
[WhiteElo "2404"]
[BlackElo "2256"]
[Result "1-0"]
[Round "04"]
[TimeControl "180+1"]
[Date "2021.10.05"]
[WhiteClock "0:00:03"]
[BlackClock "0:00:02"]

1. e4 {[%clk 0:03:00]}  c5 {[%clk 0:02:58]} 2. Nf3 {[%clk 0:02:59]}  d6 {[%clk 0:02:57]} 3. d4 {[%clk 0:02:58]}  cxd4 {[%clk 0:02:57]} 4. Nxd4 {[%clk 0:02:58]}  Nf6 {[%clk 0:02:56]} 5. Nc3 {[%clk 0:02:59]}  a6 {[%clk 0:02:56]} 6. Qe2 {[%clk 0:02:55]}  Nbd7 {[%clk 0:02:51]} 7. g4 {[%clk 0:02:51]}  h6 {[%clk 0:02:41]} 8. Rg1 {[%clk 0:02:46]}  e6 {[%clk 0:02:38]} 9. h4 {[%clk 0:02:41]}  g6 {[%clk 0:02:22]} 10. Be3 {[%clk 0:02:29]}  b5 {[%clk 0:02:20]} 11. a3 {[%clk 0:02:15]}  Bb7 {[%clk 0:02:19]} 12. Bg2 {[%clk 0:02:14]}  Rc8 {[%clk 0:02:19]} 13. Bd2 {[%clk 0:01:39]}  Ne5 {[%clk 0:02:14]} 14. g5 {[%clk 0:01:36]}  Nfd7 {[%clk 0:02:03]} 15. O-O-O {[%clk 0:01:22]}  Nc4 {[%clk 0:02:01]} 16. f4 {[%clk 0:01:11]}  Bg7 {[%clk 0:01:51]} 17. Be1 {[%clk 0:00:55]}  hxg5 {[%clk 0:01:26]} 18. hxg5 {[%clk 0:00:54]}  e5 {[%clk 0:01:21]} 19. Nf5 {[%clk 0:00:35]}  gxf5 {[%clk 0:01:14]} 20. exf5 {[%clk 0:00:36]}  Bxg2 {[%clk 0:01:12]} 21. Rxg2 {[%clk 0:00:29]}  Qb6 {[%clk 0:00:52]} 22. Nd5 {[%clk 0:00:24]}  Qc5 {[%clk 0:00:39]} 23. f6 {[%clk 0:00:23]}  Bf8 {[%clk 0:00:36]} 24. g6 {[%clk 0:00:23]}  fxg6 {[%clk 0:00:30]} 25. Qg4 {[%clk 0:00:23]}  Kd8 {[%clk 0:00:19]} 26. Qe6 {[%clk 0:00:18]}  Ncb6 {[%clk 0:00:15]} 27. Ba5 {[%clk 0:00:16]}  Rc6 {[%clk 0:00:08]} 28. f7 {[%clk 0:00:11]}  Kc8 {[%clk 0:00:05]} 29. Bxb6 {[%clk 0:00:07]}  Rxb6 {[%clk 0:00:05]} 30. Qe8+ {[%clk 0:00:04]}  Kb7 {[%clk 0:00:05]} 31. Qxd7+ {[%clk 0:00:05]}  Kb8 {[%clk 0:00:04]} 32. Qd8+ {[%clk 0:00:04]}  Kb7 {[%clk 0:00:05]} 33. Qd7+ {[%clk 0:00:05]}  Kb8 {[%clk 0:00:05]} 34. Nxb6 {[%clk 0:00:05]}  Qxb6 {[%clk 0:00:04]} 35. fxe5 {[%clk 0:00:06]}  Bh6+ {[%clk 0:00:03]} 36. Kb1 {[%clk 0:00:05]}  Rd8 {[%clk 0:00:03]} 37. Qe7 {[%clk 0:00:03]}  Bf8 {[%clk 0:00:02]} 38. Qe6 {[%clk 0:00:03]} 1-0


[Site "https://www.chess.com"]

[Event "Titled Tuesday Blitz October 5 2021"]
[White "Cunha, Lucas Aguiar"]
[Black "Balabayeva, Xeniya"]
[WhiteFideId "2125404"]
[BlackFideId "13719688"]
[WhiteElo "2361"]
[BlackElo "1965"]
[Result "1-0"]
[Round "04"]
[TimeControl "180+1"]
[Date "2021.10.05"]
[WhiteClock "0:00:40"]
[BlackClock "0:00:00"]

1. e4 {[%clk 0:03:00]}  c6 {[%clk 0:03:00]} 2. d4 {[%clk 0:03:00]}  d5 {[%clk 0:03:00]} 3. e5 {[%clk 0:03:00]}  Bf5 {[%clk 0:02:59]} 4. Nf3 {[%clk 0:03:00]}  e6 {[%clk 0:02:58]} 5. Be2 {[%clk 0:03:01]}  Nd7 {[%clk 0:02:47]} 6. O-O {[%clk 0:03:01]}  h6 {[%clk 0:02:47]} 7. Nbd2 {[%clk 0:03:01]}  g5 {[%clk 0:02:38]} 8. Ne1 {[%clk 0:03:00]}  Be7 {[%clk 0:02:26]} 9. Nb3 {[%clk 0:03:00]}  c5 {[%clk 0:02:04]} 10. c3 {[%clk 0:02:45]}  c4 {[%clk 0:01:56]} 11. Nd2 {[%clk 0:02:45]}  Rc8 {[%clk 0:01:54]} 12. b3 {[%clk 0:02:40]}  cxb3 {[%clk 0:01:12]} 13. Qxb3 {[%clk 0:02:41]}  Qc7 {[%clk 0:01:08]} 14. c4 {[%clk 0:02:29]}  dxc4 {[%clk 0:01:00]} 15. Bxc4 {[%clk 0:02:30]}  h5 {[%clk 0:00:44]} 16. Bb2 {[%clk 0:02:25]}  Nh6 {[%clk 0:00:37]} 17. Rc1 {[%clk 0:02:22]}  Qb8 {[%clk 0:00:34]} 18. Nd3 {[%clk 0:02:13]}  O-O {[%clk 0:00:32]} 19. d5 {[%clk 0:01:51]}  exd5 {[%clk 0:00:32]} 20. Bxd5 {[%clk 0:01:50]}  Nb6 {[%clk 0:00:32]} 21. Be4 {[%clk 0:01:39]}  Be6 {[%clk 0:00:31]} 22. Qd1 {[%clk 0:01:38]}  Rxc1 {[%clk 0:00:18]} 23. Bxc1 {[%clk 0:01:39]}  g4 {[%clk 0:00:14]} 24. Nb3 {[%clk 0:01:32]}  Nf5 {[%clk 0:00:13]} 25. h3 {[%clk 0:01:29]}  Ng7 {[%clk 0:00:11]} 26. hxg4 {[%clk 0:01:24]}  hxg4 {[%clk 0:00:11]} 27. Bh6 {[%clk 0:01:23]}  f5 {[%clk 0:00:10]} 28. exf6 {[%clk 0:01:17]}  Rxf6 {[%clk 0:00:10]} 29. Bg5 {[%clk 0:01:13]}  Rf7 {[%clk 0:00:10]} 30. Qd2 {[%clk 0:01:10]}  Bxg5 {[%clk 0:00:09]} 31. Qxg5 {[%clk 0:01:11]}  Qd6 {[%clk 0:00:07]} 32. Re1 {[%clk 0:01:01]}  Re7 {[%clk 0:00:07]} 33. Qh6 {[%clk 0:00:54]}  Nc8 {[%clk 0:00:06]} 34. Nf4 {[%clk 0:00:48]}  Bf7 {[%clk 0:00:03]} 35. Qh7+ {[%clk 0:00:44]}  Kf8 {[%clk 0:00:03]} 36. Qh8+ {[%clk 0:00:45]}  Bg8 {[%clk 0:00:03]} 37. Ng6+ {[%clk 0:00:44]}  Kf7 {[%clk 0:00:03]} 38. Nxe7 {[%clk 0:00:43]}  Nxe7 {[%clk 0:00:04]} 39. Bc2 {[%clk 0:00:41]}  Qc6 {[%clk 0:00:03]} 40. Nd4 {[%clk 0:00:41]}  Qc3 {[%clk 0:00:02]} 41. Bb3+ {[%clk 0:00:41]}  Kf6 {[%clk 0:00:02]} 42. Rxe7 {[%clk 0:00:40]}  Kxe7 {[%clk 0:00:01]} 43. Qxg7+ {[%clk 0:00:40]}  Kd6 {[%clk 0:00:00]} 44. Nf5+ {[%clk 0:00:40]} 1-0


[Site "https://www.chess.com"]

[Event "Titled Tuesday Blitz October 5 2021"]
[White "De Silva, L M S T"]
[Black "Brunner, Nicolas"]
[WhiteFideId "9953698"]
[BlackFideId "620246"]
[WhiteElo "1621"]
[BlackElo "2372"]
[Result "1-0"]
[Round "04"]
[TimeControl "180+1"]
[Date "2021.10.05"]
[WhiteClock "0:01:37"]
[BlackClock "0:00:13"]

1. e4 {[%clk 0:03:00]}  e5 {[%clk 0:02:59]} 2. Nf3 {[%clk 0:03:01]}  Nc6 {[%clk 0:02:59]} 3. Bc4 {[%clk 0:03:01]}  Nf6 {[%clk 0:02:58]} 4. d3 {[%clk 0:03:02]}  Be7 {[%clk 0:02:58]} 5. O-O {[%clk 0:03:01]}  O-O {[%clk 0:02:57]} 6. Re1 {[%clk 0:03:01]}  d6 {[%clk 0:02:52]} 7. a4 {[%clk 0:03:01]}  Na5 {[%clk 0:02:52]} 8. Ba2 {[%clk 0:03:01]}  c5 {[%clk 0:02:50]} 9. Nbd2 {[%clk 0:03:01]}  Nc6 {[%clk 0:02:42]} 10. h3 {[%clk 0:03:00]}  h6 {[%clk 0:02:38]} 11. Nf1 {[%clk 0:03:00]}  Be6 {[%clk 0:02:32]} 12. Ng3 {[%clk 0:02:59]}  Bxa2 {[%clk 0:02:31]} 13. Rxa2 {[%clk 0:02:59]}  Re8 {[%clk 0:02:29]} 14. c3 {[%clk 0:02:58]}  Bf8 {[%clk 0:02:28]} 15. Nh4 {[%clk 0:02:56]}  g6 {[%clk 0:02:26]} 16. Nf1 {[%clk 0:02:43]}  Bg7 {[%clk 0:02:24]} 17. g3 {[%clk 0:02:43]}  Qd7 {[%clk 0:02:13]} 18. Kh2 {[%clk 0:02:42]}  d5 {[%clk 0:02:14]} 19. Qf3 {[%clk 0:02:42]}  dxe4 {[%clk 0:01:49]} 20. dxe4 {[%clk 0:02:43]}  Nh7 {[%clk 0:01:48]} 21. Be3 {[%clk 0:02:38]}  Ng5 {[%clk 0:01:38]} 22. Bxg5 {[%clk 0:02:38]}  hxg5 {[%clk 0:01:38]} 23. Ng2 {[%clk 0:02:39]}  f6 {[%clk 0:01:26]} 24. Nge3 {[%clk 0:02:37]}  Kf7 {[%clk 0:01:23]} 25. Nd5 {[%clk 0:02:36]}  Ne7 {[%clk 0:01:21]} 26. Nfe3 {[%clk 0:02:36]}  Rh8 {[%clk 0:01:20]} 27. g4 {[%clk 0:02:34]}  Nc8 {[%clk 0:01:13]} 28. Raa1 {[%clk 0:02:34]}  Nd6 {[%clk 0:01:05]} 29. Rad1 {[%clk 0:02:34]}  Rad8 {[%clk 0:01:05]} 30. Rd2 {[%clk 0:02:31]}  Qe6 {[%clk 0:00:57]} 31. Red1 {[%clk 0:02:31]}  b6 {[%clk 0:00:46]} 32. b3 {[%clk 0:02:30]}  Nb7 {[%clk 0:00:40]} 33. Nc4 {[%clk 0:02:24]}  Rh4 {[%clk 0:00:30]} 34. Kg2 {[%clk 0:02:24]}  Rdh8 {[%clk 0:00:29]} 35. Nxf6 {[%clk 0:01:56]}  Bxf6 {[%clk 0:00:20]} 36. Rd7+ {[%clk 0:01:56]}  Ke8 {[%clk 0:00:18]} 37. Rxb7 {[%clk 0:01:52]}  Rxh3 {[%clk 0:00:18]} 38. Rd6 {[%clk 0:01:39]}  Rh2+ {[%clk 0:00:13]} 39. Kf1 {[%clk 0:01:37]} 1-0


[Site "https://www.chess.com"]